bitfinex/quotes_BTCUSD_20240712
["timestamp","ask_amount","ask_price","bid_price","bid_amount"]
[1720746553241,0.02122397,57343.0,57342.0,0.12]
[1720746553449,0.05934045,57343.0,57342.0,0.12]
[1720746553651,0.03811648,57343.0,57342.0,0.12]
[1720746553862,0.08769194,57343.0,57342.0,0.12]
[1720746554332,0.08770069,57343.0,57342.0,0.12]
[1720746554756,0.08770635,57343.0,57342.0,0.12]
[1720746554971,0.0381189,57343.0,57342.0,0.12]
[1720746556800,0.1195189,57343.0,57342.0,0.12]
[1720746557228,0.1195189,57343.0,57342.0,1.0148047]
[1720746557229,0.03811974,57343.0,57342.0,1.0148047]
[1720746557453,0.01082311,57343.0,57342.0,1.3635887]
[1720746557678,0.0814,57354.0,57352.0,0.06]
[1720746557900,0.10414454,57360.0,57357.0,0.12]
[1720746558159,0.15621681,57367.0,57360.0,0.12]
[1720746558160,0.10414454,57365.0,57360.0,0.12]
[1720746558380,0.174328,57363.0,57361.0,0.12]
[1720746558638,0.174328,57363.0,57362.0,0.12]
[1720746558857,0.18515458,57363.0,57358.0,0.08511435]
[1720746559090,0.44752358,57367.0,57358.0,0.08511435]
[1720746559091,0.02178858,57367.0,57362.0,0.355131]
[1720746559319,0.02178858,57367.0,57366.0,0.12]
[1720746559542,0.174304,57371.0,57370.0,0.12]
[1720746559786,0.21241667,57371.0,57370.0,0.12]
[1720746560013,0.174307,57370.0,57363.0,0.4645567]
[1720746560255,0.17432,57366.0,57360.0,0.12]
[1720746560478,0.174338,57360.0,57358.0,0.12]
[1720746560707,0.174335,57361.0,57358.0,0.12]
[1720746560925,0.01082626,57360.0,57358.0,0.12]
[1720746561353,0.01082626,57359.0,57358.0,0.12]
[1720746561536,0.18515726,57362.0,57358.0,0.12]
[1720746561777,0.01082626,57361.0,57358.0,0.12]
[1720746561995,0.01082626,57361.0,57352.0,0.348718]
[1720746561996,0.01082626,57361.0,57351.0,0.6364684]
[1720746562212,0.174351,57356.0,57354.0,0.12]
[1720746562431,0.01082626,57355.0,57353.0,0.12]
[1720746562640,0.18517826,57355.0,57353.0,0.12]
[1720746562871,0.01082626,57354.0,57353.0,0.12]
[1720746563090,0.15792626,57354.0,57349.0,0.12]
[1720746563309,0.01082626,57353.0,57350.0,0.1702287]
[1720746563520,0.01082626,57353.0,57350.0,0.2902287]
[1720746563777,0.01082626,57353.0,57350.0,0.1702287]
[1720746563998,0.01082518,57352.0,57350.0,0.1702287]
[1720746564464,0.01082507,57351.0,57350.0,0.1702287]
[1720746564676,0.00306353,57353.0,57350.0,0.1702287]
[1720746564890,0.01082525,57352.0,57350.0,0.1702287]
[1720746565118,0.01082525,57352.0,57351.0,0.20511435]
[1720746565340,0.01082525,57353.0,57351.0,0.20511435]
[1720746565567,0.18518325,57353.0,57351.0,0.20511435]
[1720746565801,0.01082525,57352.0,57351.0,0.08511435]
[1720746566027,0.01082475,57352.0,57351.0,0.08511435]
[1720746567210,0.01082504,57352.0,57351.0,0.08511435]
[1720746567458,0.01082512,57352.0,57351.0,0.08511435]
[1720746567927,0.01082512,57352.0,57351.0,0.20511435]
[1720746568153,0.174356,57354.0,57351.0,0.20511435]
[1720746568154,0.174356,57354.0,57352.0,0.12]
[1720746568400,0.174339,57360.0,57356.0,0.12]
[1720746568623,0.18516656,57359.0,57356.0,0.12]
[1720746568868,0.17434,57359.0,57358.0,0.12]
[1720746569089,0.18516675,57359.0,57358.0,0.20511435]
[1720746569821,0.01082675,57359.0,57358.0,0.20511435]
[1720746570321,0.174317,57367.0,57363.0,0.12]
[1720746570561,0.01082793,57366.0,57365.0,0.12]
[1720746570804,0.01082836,57366.0,57365.0,0.12]
[1720746571029,0.01082813,57366.0,57365.0,0.12]
[1720746572214,0.01082813,57366.0,57365.0,0.1839]
[1720746572424,0.01082813,57366.0,57365.0,0.12]
[1720746573261,0.18514713,57366.0,57365.0,0.12]
[1720746573477,0.18514713,57366.0,57363.0,0.2902287]
[1720746573686,0.01082813,57365.0,57363.0,0.2902287]
[1720746574125,0.174319,57366.0,57363.0,0.2902287]
[1720746574351,0.0108282,57365.0,57363.0,0.1702287]
[1720746574566,0.01082839,57364.0,57363.0,0.1702287]
[1720746574787,0.18515339,57364.0,57363.0,0.1702287]
[1720746575027,0.01082839,57364.0,57363.0,0.2902287]
[1720746575265,0.18515139,57365.0,57363.0,0.1702287]
[1720746575476,0.18515339,57364.0,57363.0,0.1702287]
[1720746577204,0.18515278,57364.0,57363.0,0.1702287]
[1720746577416,0.522975,57364.0,57363.0,0.1702287]
[1720746577630,0.53380309,57364.0,57363.0,0.1702287]
[1720746578723,0.18515309,57364.0,57363.0,0.1702287]
[1720746578948,0.18515309,57364.0,57363.0,0.2902287]
[1720746579201,0.01082809,57364.0,57363.0,0.4645567]
[1720746579427,0.17431,57369.0,57367.0,0.12]
[1720746579428,0.01082809,57368.0,57367.0,0.12]
[1720746579616,0.174315,57368.0,57366.0,0.12]
[1720746579866,0.01083552,57367.0,57366.0,0.2902287]
[1720746580733,0.01083552,57367.0,57366.0,0.1702287]
[1720746580951,0.01083565,57368.0,57361.0,0.12]
[1720746581167,0.17433,57363.0,57362.0,0.1702287]
[1720746581380,0.18516565,57363.0,57362.0,0.1702287]
[1720746582898,0.01083565,57363.0,57362.0,0.2902287]
[1720746583108,0.174331,57362.0,57361.0,0.12]
[1720746583336,0.53382865,57362.0,57361.0,0.12]
[1720746584201,0.522993,57362.0,57361.0,0.12]
[1720746584431,0.53382743,57362.0,57361.0,0.12]
[1720746584651,0.53382761,57362.0,57361.0,0.12]
[1720746584896,0.174334,57361.0,57360.0,0.12]
[1720746585113,0.17434,57359.0,57358.0,0.25534305]
[1720746585326,0.18517461,57359.0,57358.0,0.25534305]
[1720746585538,0.18823814,57359.0,57358.0,0.25534305]
[1720746586154,0.18823814,57359.0,57358.0,0.37534305]
[1720746587557,0.18823814,57359.0,57354.0,0.12]
[1720746587558,0.174354,57355.0,57354.0,0.12]
[1720746587770,0.18519269,57355.0,57354.0,0.1702287]
[1720746588435,0.18825622,57355.0,57354.0,0.1702287]
[1720746589302,0.01390222,57355.0,57354.0,0.1702287]
[1720746589517,0.01390222,57355.0,57354.0,0.4645837]
[1720746589738,0.01083869,57355.0,57354.0,0.6013837]
[1720746589955,0.01084143,57356.0,57355.0,0.12]
[1720746590160,0.01084186,57356.0,57355.0,0.2902287]
[1720746590369,0.01084183,57358.0,57357.0,0.12]
[1720746590561,0.00306353,57359.0,57357.0,0.12]
[1720746590562,0.00306353,57360.0,57359.0,0.12]
[1720746590776,0.01390526,57360.0,57359.0,0.2902287]
[1720746591002,0.01084173,57360.0,57359.0,0.1702287]
[1720746591212,0.01084173,57363.0,57359.0,0.2902287]
[1720746591437,0.174322,57365.0,57363.0,0.12]
[1720746591648,0.03812774,57364.0,57363.0,0.12]
[1720746594103,0.02728714,57364.0,57363.0,0.12]
[1720746594304,0.0381266,57364.0,57363.0,0.12]
[1720746594531,0.02728714,57364.0,57363.0,0.12]
[1720746594730,0.03812692,57364.0,57363.0,0.12]
[1720746595738,0.03812692,57364.0,57363.0,0.1809]
[1720746596372,0.03812692,57364.0,57363.0,0.2609]
[1720746597218,0.03812417,57364.0,57363.0,0.2609]
[1720746597437,0.02728714,57364.0,57363.0,0.2609]
[1720746597668,0.02728714,57364.0,57363.0,0.4311287]
[1720746597669,0.03812415,57364.0,57363.0,0.4311287]
[1720746597876,0.03812415,57364.0,57363.0,0.6054567]
[1720746598730,0.03903716,57364.0,57363.0,0.9541127]
[1720746599146,0.01175002,57364.0,57363.0,0.9541127]
[1720746599560,0.01174904,57364.0,57363.0,0.9541127]
[1720746599769,0.01174904,57364.0,57363.0,1.3627687]
[1720746600626,0.01174904,57364.0,57363.0,1.3027687]
[1720746600627,0.00091301,57364.0,57363.0,1.3027687]
[1720746600830,0.00091301,57364.0,57363.0,1.5027687]
[1720746600831,0.01174994,57364.0,57363.0,1.5027687]
[1720746601262,0.01174994,57364.0,57363.0,1.3027687]
[1720746603265,0.0117492,57364.0,57363.0,1.3027687]
[1720746603709,0.01174942,57364.0,57363.0,1.3027687]
[1720746604562,0.01174942,57364.0,57363.0,1.7114247]
[1720746605296,0.01174942,57364.0,57363.0,1.8953247]
[1720746605564,0.00091301,57364.0,57363.0,1.8953247]
[1720746606011,0.348549,57381.0,57378.0,0.12]
[1720746606012,0.00306353,57379.0,57378.0,0.12]
[1720746606242,0.08856829,57379.0,57378.0,0.12]
[1720746606528,0.08856829,57379.0,57375.0,0.12]
[1720746606529,0.08856846,57379.0,57375.0,0.12]
[1720746606755,0.26285046,57378.0,57375.0,0.2902287]
[1720746606996,0.03812144,57377.0,57375.0,0.2902287]
[1720746607225,0.03812144,57377.0,57373.0,0.2]
[1720746607226,0.44969844,57376.0,57373.0,0.2]
[1720746607451,0.44969844,57376.0,57370.0,0.12]
[1720746607452,0.03812144,57375.0,57370.0,0.12]
[1720746607674,0.03812144,57375.0,57372.0,0.12]
[1720746607675,0.174298,57373.0,57372.0,0.12]
[1720746607900,0.03812144,57373.0,57372.0,0.12]
[1720746608122,0.03812144,57373.0,57371.0,0.2902287]
[1720746608360,0.03812144,57372.0,57371.0,0.2902287]
[1720746609757,0.03812096,57372.0,57371.0,0.2902287]
[1720746609981,0.01083997,57372.0,57371.0,0.2902287]
[1720746610199,0.522865,57377.0,57374.0,0.12]
[1720746610419,0.03812078,57376.0,57375.0,0.2902287]
[1720746610661,0.03812078,57376.0,57375.0,0.3533287]
[1720746611087,0.03812078,57376.0,57375.0,0.8762027]
[1720746611088,0.0108402,57376.0,57375.0,0.8762027]
[1720746611311,0.01084166,57380.0,57379.0,0.294279]
[1720746611534,0.00083,57382.0,57379.0,0.294279]
[1720746611535,0.01084148,57381.0,57380.0,0.08511435]
[1720746611742,0.01084159,57381.0,57380.0,0.25534305]
[1720746612219,0.01084159,57381.0,57380.0,0.37534305]
[1720746612803,0.01084159,57381.0,57380.0,0.54961905]
[1720746613440,0.00083,57382.0,57381.0,0.294273]
[1720746613641,0.00083,57382.0,57381.0,1.0177487]
[1720746614082,0.706061,57393.0,57391.0,0.12]
[1720746614291,0.03811965,57392.0,57391.0,0.12]
[1720746614748,0.05804923,57392.0,57391.0,0.12]
[1720746615234,0.05804923,57392.0,57391.0,0.6387147]
[1720746615457,0.01084393,57392.0,57391.0,0.8129577]
[1720746615680,0.01084393,57392.0,57391.0,1.2214437]
[1720746615920,0.009108,57393.0,57392.0,0.90272]
[1720746616171,0.009108,57393.0,57392.0,1.50654305]
[1720746617441,0.009108,57393.0,57392.0,0.12]
[1720746617442,0.073008,57393.0,57392.0,0.12]
[1720746617685,0.08385183,57393.0,57392.0,0.12]
[1720746617922,0.01995183,57393.0,57390.0,0.12]
[1720746618156,0.01084383,57392.0,57391.0,0.12]
[1720746618898,0.174256,57387.0,57381.0,0.55055405]
[1720746619124,0.01084177,57386.0,57384.0,0.12]
[1720746619354,0.18509977,57386.0,57384.0,0.12]
[1720746619626,0.0603,57389.0,57381.0,0.43055405]
[1720746619627,0.01084195,57385.0,57381.0,0.12]
[1720746619854,0.01084195,57384.0,57383.0,0.12]
[1720746620076,0.174264,57385.0,57383.0,0.12]
[1720746620311,0.01084195,57384.0,57383.0,0.12]
[1720746620589,0.174268,57383.0,57380.0,0.12]
[1720746620849,0.174288,57376.0,57374.0,0.43055405]
[1720746621091,0.174288,57376.0,57370.0,0.32]
[1720746621092,0.174296,57374.0,57370.0,0.32]
[1720746621318,0.01390548,57373.0,57371.0,0.1702287]
[1720746621541,0.01084195,57372.0,57371.0,0.1702287]
[1720746622706,0.0654,57372.0,57365.0,0.43055405]
[1720746622935,0.604457,57366.0,57365.0,0.43055405]
[1720746623204,0.17434,57359.0,57358.0,0.00083]
[1720746623427,0.53385826,57359.0,57358.0,0.00083]
[1720746624384,0.18517726,57359.0,57358.0,0.00083]
[1720746624657,0.01083726,57359.0,57358.0,0.00083]
[1720746625111,0.01083726,57359.0,57358.0,0.12083]
[1720746625112,0.01390079,57359.0,57358.0,0.12083]
[1720746625160,0.00306353,57359.0,57358.0,0.4654017]
[1720746625391,0.348638,57367.0,57364.0,0.12]
[1720746625608,0.18515642,57366.0,57365.0,0.08511435]
[1720746625831,0.00306353,57368.0,57367.0,0.12]
[1720746626070,0.02081694,57372.0,57368.0,0.12]
[1720746626071,0.00306353,57369.0,57368.0,0.12]
[1720746626318,0.01390202,57369.0,57368.0,0.2902287]
[1720746626572,0.01083849,57369.0,57368.0,0.2902287]
[1720746626810,0.17431,57369.0,57368.0,0.1702287]
[1720746627044,0.18514849,57369.0,57368.0,0.1702287]
[1720746628699,0.18514849,57369.0,57363.0,0.08511435]
[1720746628700,0.0616,57364.0,57363.0,0.08511435]
[1720746628937,0.59847702,57364.0,57363.0,0.08511435]
[1720746629177,0.59847702,57364.0,57357.0,0.08511435]
[1720746629178,0.871702,57359.0,57357.0,0.08511435]
[1720746629406,0.88253892,57359.0,57358.0,0.43131067]
[1720746629669,0.53385792,57359.0,57358.0,0.43131067]
[1720746629927,0.01083692,57359.0,57358.0,0.72153937]
[1720746630153,0.17433,57363.0,57359.0,0.12]
[1720746630377,0.01390225,57362.0,57359.0,0.2902287]
[1720746630612,0.01083872,57361.0,57359.0,0.1702287]
[1720746631087,0.00306353,57360.0,57359.0,0.1702287]
[1720746631345,0.0287507,57360.0,57359.0,0.1702287]
[1720746631595,0.02568717,57360.0,57359.0,0.1702287]
[1720746632503,0.20002417,57360.0,57359.0,0.1702287]
[1720746632975,0.18918545,57360.0,57359.0,0.1702287]
[1720746633199,0.20003015,57360.0,57359.0,0.1702287]
[1720746634835,0.871702,57359.0,57358.0,0.00075662]
[1720746635085,0.8825467,57359.0,57358.0,0.00075662]
[1720746635302,1.38395796,57359.0,57358.0,0.00075662]
[1720746635524,1.38395846,57359.0,57358.0,0.00075662]
[1720746636023,1.48395846,57359.0,57358.0,0.00075662]
[1720746636258,1.51125128,57359.0,57358.0,0.00075662]
[1720746638708,1.48395846,57359.0,57358.0,0.00075662]
[1720746638948,1.51125181,57359.0,57358.0,0.00075662]
[1720746639170,1.50040661,57359.0,57358.0,0.00075662]
[1720746639393,1.48395725,57359.0,57358.0,0.00075662]
[1720746641115,2.03263825,57359.0,57358.0,0.00075662]
[1720746641787,2.05296631,57359.0,57358.0,0.00075662]
[1720746642680,2.05297059,57359.0,57358.0,0.00075662]
[1720746642947,2.04212232,57359.0,57358.0,0.00075662]
[1720746643191,2.05297011,57359.0,57358.0,0.00075662]
[1720746644318,1.85297011,57359.0,57358.0,0.00075662]
[1720746644539,1.50428911,57359.0,57358.0,0.00075662]
[1720746644766,0.56892711,57359.0,57358.0,0.00075662]
[1720746645000,0.55807932,57359.0,57358.0,0.00075662]
[1720746645257,0.56892836,57359.0,57358.0,0.00075662]
[1720746645723,0.91760936,57359.0,57358.0,0.00075662]
[1720746645947,0.91761028,57359.0,57358.0,0.00075662]
[1720746648239,0.99971028,57359.0,57358.0,0.00075662]
[1720746649152,0.98886032,57359.0,57358.0,0.00075662]
[1720746649383,0.99971191,57359.0,57358.0,0.00075662]
[1720746649620,1.40889291,57359.0,57358.0,0.00075662]
[1720746649865,1.26629291,57359.0,57358.0,0.00075662]
[1720746650098,0.56893091,57359.0,57358.0,0.00075662]
[1720746650800,0.56893091,57359.0,57358.0,0.13735662]
[1720746652643,0.5689311,57359.0,57358.0,0.13735662]
[1720746653098,0.5689312,57359.0,57358.0,0.13735662]
[1720746654212,0.59622202,57359.0,57358.0,0.13735662]
[1720746655118,0.59622202,57359.0,57358.0,0.06195662]
[1720746656014,0.59622442,57359.0,57358.0,0.06195662]
[1720746658778,0.24754342,57359.0,57358.0,0.06195662]
[1720746659457,0.29173988,57359.0,57358.0,0.06195662]
[1720746659693,0.24754758,57359.0,57358.0,0.06195662]
[1720746660015,0.59622858,57359.0,57358.0,0.00075662]
[1720746660282,0.64042043,57359.0,57358.0,0.00075662]
[1720746661375,0.63542043,57359.0,57358.0,0.00075662]
[1720746662103,0.63516282,57359.0,57358.0,0.00075662]
[1720746662564,0.63515592,57359.0,57358.0,0.00075662]
[1720746665006,0.98383692,57359.0,57358.0,0.00075662]
[1720746665428,1.47491792,57359.0,57358.0,0.00075662]
[1720746665647,1.57491792,57359.0,57358.0,0.00075662]
[1720746666095,1.57574792,57359.0,57358.0,0.00075662]
[1720746667547,2.12442892,57359.0,57358.0,0.00075662]
[1720746668279,1.92442892,57359.0,57358.0,0.00075662]
[1720746668484,1.08466692,57359.0,57358.0,0.00075662]
[1720746668713,0.73895328,57359.0,57358.0,0.00075662]
[1720746668929,0.98763428,57359.0,57358.0,0.00075662]
[1720746669348,1.33631528,57359.0,57358.0,0.00075662]
[1720746669561,1.47631528,57359.0,57358.0,0.00075662]
[1720746669770,1.82499628,57359.0,57358.0,0.00075662]
[1720746670188,1.82499628,57359.0,57358.0,0.00175662]
[1720746670189,2.03899628,57359.0,57358.0,0.00175662]
[1720746670613,2.02499628,57359.0,57358.0,0.00075662]
[1720746671271,1.92499628,57359.0,57358.0,0.00075662]
[1720746671492,2.12499628,57359.0,57358.0,0.00075662]
[1720746671958,2.11774898,57359.0,57358.0,0.00075662]
[1720746672176,2.14259022,57359.0,57358.0,0.00175662]
[1720746672396,2.14259233,57359.0,57358.0,0.00175662]
[1720746672622,2.27297897,57359.0,57358.0,0.00175662]
[1720746672840,2.07297897,57359.0,57358.0,0.00175662]
[1720746673519,1.94259233,57359.0,57358.0,0.00175662]
[1720746673943,2.07300945,57359.0,57358.0,0.00175662]
[1720746674362,1.94259233,57359.0,57358.0,0.00175662]
[1720746674782,1.93798297,57359.0,57358.0,0.00175662]
[1720746675005,1.93835048,57359.0,57358.0,0.00175662]
[1720746675353,1.93835108,57359.0,57358.0,0.00175662]
[1720746675810,1.44967008,57359.0,57358.0,0.00175662]
[1720746676039,1.58010334,57359.0,57358.0,0.00175662]
[1720746676252,1.44967008,57359.0,57358.0,0.00175662]
[1720746678232,1.58014271,57359.0,57358.0,0.00175662]
[1720746678732,1.44967008,57359.0,57358.0,0.00175662]
[1720746678965,1.44966789,57359.0,57358.0,0.00175662]
[1720746679198,0.43411914,57359.0,57358.0,0.14195662]
[1720746679435,0.30362489,57359.0,57358.0,0.14195662]
[1720746682144,0.29278111,57359.0,57358.0,0.14195662]
[1720746682371,0.30347148,57359.0,57358.0,0.14195662]
[1720746682590,0.30345844,57359.0,57358.0,0.14195662]
[1720746682814,0.30345844,57359.0,57358.0,0.26195662]
[1720746685522,0.13423377,57359.0,57358.0,0.26195662]
[1720746685965,0.13423377,57359.0,57358.0,0.14195662]
[1720746686424,0.13432057,57359.0,57358.0,0.14195662]
[1720746686863,0.30866057,57359.0,57358.0,0.14195662]
[1720746687089,0.30866057,57359.0,57358.0,0.00175662]
[1720746688963,0.59559078,57359.0,57358.0,0.00175662]
[1720746689201,0.30811221,57359.0,57358.0,0.00175662]
[1720746689425,0.30811221,57359.0,57358.0,0.12175662]
[1720746689658,0.06307677,57359.0,57358.0,0.49198532]
[1720746689878,0.06307677,57359.0,57358.0,0.63048532]
[1720746690113,0.05295587,57359.0,57358.0,0.71559967]
[1720746691909,0.31157336,57366.0,57363.0,0.12]
[1720746692035,0.31157336,57366.0,57364.0,0.08511435]
[1720746692036,0.25083631,57365.0,57364.0,0.08511435]
[1720746692248,0.25083631,57365.0,57364.0,0.20511435]
[1720746692249,0.21175644,57365.0,57364.0,0.20511435]
[1720746692503,0.26098687,57365.0,57364.0,0.20511435]
[1720746692728,0.26098843,57365.0,57364.0,0.20511435]
[1720746692939,0.26098843,57365.0,57364.0,0.08511435]
[1720746693160,0.34865,57364.0,57358.0,0.71459967]
[1720746693374,0.174333,57362.0,57359.0,0.1702287]
[1720746693591,0.07651998,57361.0,57359.0,0.1702287]
[1720746693826,0.02728799,57360.0,57359.0,0.1702287]
[1720746694047,0.03740966,57360.0,57359.0,0.1702287]
[1720746695361,0.03740966,57360.0,57359.0,0.2902287]
[1720746696869,0.03740966,57360.0,57359.0,0.2912287]
[1720746697293,0.03740966,57360.0,57359.0,0.2902287]
[1720746700258,0.21174666,57360.0,57359.0,0.1702287]
[1720746700732,1.220383,57359.0,57358.0,0.00075662]
[1720746700960,1.25073452,57359.0,57358.0,0.00075662]
[1720746701185,1.30955957,57359.0,57358.0,0.00075662]
[1720746701436,1.30649604,57359.0,57358.0,0.00075662]
[1720746701913,1.3173333,57359.0,57358.0,0.00075662]
[1720746702841,1.31720739,57359.0,57358.0,0.00075662]
[1720746703257,1.31820739,57359.0,57358.0,0.00075662]
[1720746704171,0.96952639,57359.0,57358.0,0.00075662]
[1720746705292,0.97052336,57359.0,57358.0,0.00075662]
[1720746705739,0.97052335,57359.0,57358.0,0.00075662]
[1720746707150,0.97152335,57359.0,57358.0,0.00175662]
[1720746708298,1.32020435,57359.0,57358.0,0.00175662]
[1720746708529,1.91648535,57359.0,57358.0,0.00175662]
[1720746708751,2.11648535,57359.0,57358.0,0.00175662]
[1720746709011,2.10598969,57359.0,57358.0,0.00175662]
[1720746709207,2.27324103,57359.0,57358.0,0.00175662]
[1720746709410,2.11682505,57359.0,57358.0,0.00175662]
[1720746709884,2.11682505,57359.0,57345.0,0.08511435]
[1720746709885,0.8719,57346.0,57345.0,0.08511435]
[1720746710093,0.8719,57346.0,57339.0,0.0786]
[1720746710094,0.52324,57335.0,57333.0,0.43055405]
[1720746710332,0.52324,57335.0,57334.0,0.15499135]
[1720746710333,0.96110822,57335.0,57334.0,0.15499135]
[1720746710541,0.92135887,57335.0,57334.0,0.15499135]
[1720746710761,0.97240092,57335.0,57334.0,0.15499135]
[1720746710988,0.523249,57334.0,57333.0,0.43055405]
[1720746711203,0.872157,57329.0,57328.0,0.00083]
[1720746711426,1.81049918,57329.0,57328.0,0.00083]
[1720746711659,0.523341,57324.0,57323.0,0.009108]
[1720746711890,1.27665173,57324.0,57323.0,0.009108]
[1720746712105,1.62554573,57324.0,57323.0,0.009108]
[1720746712535,1.82554573,57324.0,57323.0,0.009108]
[1720746712741,2.31574214,57324.0,57323.0,0.009108]
[1720746713220,2.07543537,57324.0,57323.0,0.010108]
[1720746713427,2.06143537,57324.0,57323.0,0.009108]
[1720746713915,2.27543537,57324.0,57323.0,0.010108]
[1720746714137,2.07543537,57324.0,57323.0,0.010108]
[1720746714472,2.41837608,57324.0,57323.0,0.010108]
[1720746714699,2.41837608,57324.0,57312.0,0.009097]
[1720746714700,0.374465,57318.0,57312.0,0.009097]
[1720746714942,1.54043923,57318.0,57312.0,0.009097]
[1720746715181,2.00095169,57318.0,57312.0,0.009097]
[1720746715456,1.52136,57313.0,57312.0,0.009097]
[1720746715671,0.723504,57306.0,57305.0,0.009097]
[1720746715897,1.98676497,57306.0,57305.0,0.009097]
[1720746716118,1.89828357,57306.0,57305.0,0.009097]
[1720746716804,1.1875256,57306.0,57305.0,0.009097]
[1720746717028,1.20054012,57306.0,57305.0,0.009097]
[1720746717257,1.5365286,57306.0,57305.0,0.009097]
[1720746717508,1.54967097,57306.0,57305.0,0.009097]
[1720746717713,1.54967104,57306.0,57305.0,0.009097]
[1720746718386,1.8855316,57306.0,57305.0,0.009097]
[1720746718606,2.2557603,57306.0,57305.0,0.009097]
[1720746718839,2.2557603,57306.0,57276.0,0.0792]
[1720746718840,0.4,57302.0,57276.0,0.0792]
[1720746719070,2.215969,57293.0,57282.0,0.08611435]
[1720746719300,2.4861977,57293.0,57282.0,0.08611435]
[1720746719545,2.59752654,57293.0,57282.0,0.08611435]
[1720746719980,2.59721655,57293.0,57282.0,0.08611435]
[1720746720210,1.94813455,57293.0,57282.0,0.08611435]
[1720746720441,1.18722385,57293.0,57287.0,0.0651]
[1720746720701,1.18722385,57293.0,57288.0,0.08511435]
[1720746720931,1.75030585,57293.0,57288.0,0.08511435]
[1720746721419,1.55030585,57293.0,57288.0,0.08511435]
[1720746722339,1.53630585,57293.0,57288.0,0.08511435]
[1720746722807,1.55030585,57293.0,57288.0,0.08511435]
[1720746723279,1.53630585,57293.0,57288.0,0.08511435]
[1720746723506,1.55030585,57293.0,57288.0,0.08511435]
[1720746724187,1.57429576,57293.0,57288.0,0.08511435]
[1720746724410,1.56029576,57293.0,57288.0,0.08511435]
[1720746724851,1.21121376,57293.0,57288.0,0.08511435]
[1720746725943,1.56029576,57293.0,57288.0,0.08511435]
[1720746726378,1.21121376,57293.0,57288.0,0.08511435]
[1720746726598,1.22521376,57293.0,57288.0,0.08511435]
[1720746726836,1.21121376,57293.0,57288.0,0.08511435]
[1720746727333,1.22521376,57293.0,57288.0,0.08511435]
[1720746727560,0.52735975,57293.0,57288.0,0.08511435]
[1720746727775,0.87644175,57293.0,57289.0,0.0799]
[1720746727999,0.87644175,57293.0,57292.0,0.0692954]
[1720746728217,0.02532884,57293.0,57292.0,0.0692954]
[1720746728447,0.54895184,57293.0,57292.0,0.0028954]
[1720746728676,0.75245184,57293.0,57292.0,0.0028954]
[1720746729143,1.10153384,57293.0,57292.0,0.0028954]
[1720746729601,1.10153384,57293.0,57292.0,0.0278954]
[1720746729819,1.08753384,57293.0,57292.0,0.0287254]
[1720746730243,1.10244685,57293.0,57292.0,0.0287254]
[1720746730469,1.45152885,57293.0,57292.0,0.0287254]
[1720746730684,1.43752885,57293.0,57292.0,0.0287254]
[1720746731128,1.45152885,57293.0,57292.0,0.0287254]
[1720746732045,1.43752885,57293.0,57292.0,0.0287254]
[1720746732269,1.53752885,57293.0,57292.0,0.0287254]
[1720746733920,1.75152885,57293.0,57292.0,0.0287254]
[1720746734154,1.55152885,57293.0,57292.0,0.0287254]
[1720746734870,0.85336485,57293.0,57292.0,0.0287254]
[1720746735135,0.02624185,57293.0,57292.0,0.0287254]
[1720746735380,0.2035,57299.0,57295.0,0.12]
[1720746735603,0.2035,57299.0,57298.0,0.08511435]
[1720746735818,0.872617,57299.0,57298.0,0.08511435]
[1720746736940,1.221663,57299.0,57298.0,0.08511435]
[1720746738054,1.221663,57299.0,57292.0,0.0922254]
[1720746738055,0.872705,57293.0,57292.0,0.0287254]
[1720746738277,1.425287,57293.0,57292.0,0.0287254]
[1720746738497,1.076205,57293.0,57292.0,0.0287254]
[1720746738958,0.349065,57296.0,57292.0,0.0287254]
[1720746739186,0.174541,57293.0,57292.0,0.0287254]
[1720746740744,0.184541,57293.0,57292.0,0.0297254]
[1720746740959,0.184541,57293.0,57292.0,0.0287254]
[1720746740960,0.174541,57293.0,57292.0,0.0287254]
[1720746741402,0.174541,57293.0,57292.0,0.0297254]
[1720746741620,0.17449938,57293.0,57292.0,0.0297254]
[1720746741842,0.37282332,57299.0,57296.0,0.0638]
[1720746741843,0.02377732,57299.0,57296.0,0.0638]
[1720746742069,0.02377732,57299.0,57298.0,0.20511435]
[1720746742284,0.349031,57302.0,57298.0,0.08511435]
[1720746742285,0.349045,57300.0,57298.0,0.08511435]
[1720746742513,0.174523,57299.0,57298.0,0.08511435]
[1720746742751,0.523569,57299.0,57298.0,0.08511435]
[1720746742976,0.174541,57293.0,57292.0,0.0297254]
[1720746743196,0.523623,57293.0,57292.0,0.0297254]
[1720746743876,0.872705,57293.0,57292.0,0.0297254]
[1720746744133,1.221787,57293.0,57292.0,0.0287254]
[1720746744353,0.872705,57293.0,57292.0,0.0287254]
[1720746745486,0.530623,57293.0,57292.0,0.0297254]
[1720746745696,0.523623,57293.0,57292.0,0.0287254]
[1720746746117,0.533623,57293.0,57292.0,0.0297254]
[1720746746779,0.882705,57293.0,57292.0,0.0297254]
[1720746747627,0.872705,57293.0,57292.0,0.0287254]
[1720746748052,0.882705,57293.0,57292.0,0.0297254]
[1720746748255,0.872705,57293.0,57292.0,0.0287254]
[1720746748688,0.882705,57293.0,57292.0,0.0297254]
[1720746749116,0.872705,57293.0,57292.0,0.0287254]
[1720746749329,0.882705,57293.0,57292.0,0.0297254]
[1720746749541,0.91002802,57293.0,57292.0,0.0297254]
[1720746750194,0.882705,57293.0,57292.0,0.0297254]
[1720746750683,0.91002718,57293.0,57292.0,0.0297254]
[1720746750929,0.882705,57293.0,57292.0,0.0297254]
[1720746751139,0.91002743,57293.0,57292.0,0.0297254]
[1720746751355,0.872705,57293.0,57292.0,0.0287254]
[1720746751578,0.882705,57293.0,57292.0,0.0297254]
[1720746751800,0.91002743,57293.0,57292.0,0.0297254]
[1720746752015,0.882705,57293.0,57292.0,0.0297254]
[1720746752231,0.9100278,57293.0,57292.0,0.0297254]
[1720746752444,0.882705,57293.0,57292.0,0.0297254]
[1720746752654,0.91002691,57293.0,57292.0,0.0297254]
[1720746752871,0.92640331,57293.0,57292.0,0.0297254]
[1720746753522,0.91002691,57293.0,57292.0,0.0297254]
[1720746753955,0.92653605,57293.0,57292.0,0.0297254]
[1720746754182,0.05383105,57293.0,57292.0,0.0297254]
[1720746754444,0.174541,57293.0,57292.0,0.0939254]
[1720746754652,0.523623,57293.0,57292.0,0.0939254]
[1720746754897,0.02368236,57295.0,57294.0,0.12]
[1720746755133,0.24199465,57295.0,57293.0,0.12]
[1720746755353,0.174535,57295.0,57294.0,0.08511435]
[1720746755581,0.04377687,57295.0,57294.0,0.20511435]